bitfinex/quotes_BTCUSD_20250709
["timestamp","ask_amount","ask_price","bid_price","bid_amount"]
[1752038813397,1.49820901,108670.0,108660.0,0.03088292]
[1752038814453,1.49920901,108670.0,108660.0,0.03088292]
[1752038815100,1.49820901,108670.0,108660.0,0.02788292]
[1752038815534,1.49920901,108670.0,108660.0,0.02888292]
[1752038818086,1.50567172,108670.0,108660.0,0.02888292]
[1752038820416,1.51007172,108670.0,108660.0,0.02888292]
[1752038821059,1.51007172,108670.0,108660.0,0.0288657]
[1752038821060,1.51007108,108670.0,108660.0,0.0288657]
[1752038821261,1.51007108,108670.0,108660.0,0.02886624]
[1752038821922,1.55150798,108670.0,108660.0,0.02886624]
[1752038822112,1.55150798,108670.0,108660.0,0.0116219]
[1752038822359,1.55150798,108670.0,108660.0,0.02886447]
[1752038822577,1.51007108,108670.0,108660.0,0.02886447]
[1752038823228,1.55150798,108670.0,108660.0,0.0116219]
[1752038825949,1.55150798,108670.0,108660.0,0.00240763]
[1752038826159,0.54248444,108650.0,108640.0,0.0179]
[1752038826381,1.07783171,108650.0,108640.0,0.0343]
[1752038827455,1.07783171,108650.0,108640.0,0.03638606]
[1752038829013,1.07783171,108650.0,108640.0,0.03438606]
[1752038829223,1.07883171,108650.0,108640.0,0.03938606]
[1752038829436,1.07883171,108650.0,108640.0,0.04038606]
[1752038829646,1.07783171,108650.0,108640.0,0.03538606]
[1752038829857,1.07883171,108650.0,108640.0,0.03838606]
[1752038830886,0.77396137,108650.0,108640.0,0.03838606]
[1752038831175,1.07883171,108650.0,108640.0,0.03838606]
[1752038837900,0.77396137,108650.0,108640.0,0.04701317]
[1752038838127,1.07883171,108650.0,108640.0,0.04701317]
[1752038838544,1.07883171,108650.0,108640.0,0.03061317]
[1752038840868,1.07883171,108650.0,108640.0,0.04591317]
[1752038841276,1.07883171,108650.0,108640.0,0.04591446]
[1752038844351,1.07883171,108650.0,108640.0,0.03061446]
[1752038846119,1.07883171,108650.0,108640.0,0.01471446]
[1752038848412,0.80709458,108650.0,108640.0,0.01471446]
[1752038848629,1.11196492,108650.0,108640.0,0.01471446]
[1752038848854,0.80709458,108650.0,108640.0,0.01471446]
[1752038849097,1.11196492,108650.0,108640.0,0.01471446]
[1752038852286,0.80709458,108650.0,108640.0,0.01471446]
[1752038852668,1.11196492,108650.0,108640.0,0.01471446]
[1752038853090,1.11196492,108650.0,108640.0,0.01472428]
[1752038859208,0.80709458,108650.0,108640.0,0.01472428]
[1752038859410,1.11196492,108650.0,108640.0,0.01472428]
[1752038863204,1.11196492,108650.0,108640.0,0.01472486]
[1752038864517,1.11196492,108650.0,108640.0,0.01472493]
[1752038865403,0.80709458,108650.0,108640.0,0.01472493]
[1752038865610,1.11196492,108650.0,108640.0,0.01472493]
[1752038873262,0.80709458,108650.0,108640.0,0.00608606]
[1752038873436,1.11196492,108650.0,108640.0,0.00608606]
[1752038874265,0.80709458,108650.0,108640.0,0.00608606]
[1752038874475,1.11196492,108650.0,108640.0,0.00608606]
[1752038878319,0.80709458,108650.0,108640.0,0.00608606]
[1752038878534,1.11196492,108650.0,108640.0,0.00608606]
[1752038881426,1.07883171,108650.0,108640.0,0.00608606]
[1752038881664,1.11198274,108650.0,108640.0,0.00608606]
[1752038886938,1.11198274,108650.0,108640.0,0.00168606]
[1752038888687,1.07883171,108650.0,108640.0,0.00168606]
[1752038889749,1.07883171,108650.0,108640.0,0.01032505]
[1752038890163,1.11198273,108650.0,108640.0,0.01032505]
[1752038903262,1.11198273,108650.0,108640.0,0.01032507]
[1752038904580,1.11198273,108650.0,108640.0,0.00969507]
[1752038909219,1.11198273,108650.0,108640.0,0.00969508]
[1752038921869,1.12768273,108650.0,108640.0,0.00969508]
[1752038922287,1.14328273,108650.0,108640.0,0.00969508]
[1752038923673,1.12768273,108650.0,108640.0,0.00969504]
[1752038926676,1.14398273,108650.0,108640.0,0.00969504]
[1752038936425,0.83911239,108650.0,108640.0,0.00969504]
[1752038936630,1.14398273,108650.0,108640.0,0.00969504]
[1752038937881,1.14398273,108650.0,108640.0,0.0096951]
[1752038939551,1.11198273,108650.0,108640.0,0.0096951]
[1752038940390,0.80711239,108650.0,108640.0,0.0096951]
[1752038940606,1.11198273,108650.0,108640.0,0.0096951]
[1752038941050,1.11198273,108650.0,108640.0,0.0261951]
[1752038941680,1.07883171,108650.0,108640.0,0.0261951]
[1752038941882,0.93979171,108650.0,108640.0,0.0261951]
[1752038942104,1.07871171,108650.0,108640.0,0.0261951]
[1752038942753,1.07871171,108650.0,108640.0,0.02619505]
[1752038946809,1.11187882,108650.0,108640.0,0.00969505]
[1752038950300,1.11187928,108650.0,108640.0,0.00969505]
[1752038950500,1.12642013,108650.0,108640.0,0.00969505]
[1752038950834,1.02692744,108650.0,108640.0,0.00969505]
[1752038951035,1.03427656,108650.0,108640.0,0.02697301]
[1752038951472,1.03427656,108650.0,108640.0,0.02697292]
[1752038952296,1.06447656,108650.0,108640.0,0.02697292]
[1752038953993,1.04927656,108650.0,108640.0,0.02697292]
[1752038955642,1.06467656,108650.0,108640.0,0.02697292]
[1752038957142,1.05269702,108650.0,108640.0,0.02697253]
[1752038957379,0.91377702,108650.0,108640.0,0.02697253]
[1752038957609,1.05269702,108650.0,108640.0,0.02697253]
[1752038958577,1.35756736,108650.0,108640.0,0.02697253]
[1752038959026,1.36404466,108650.0,108640.0,0.02697253]
[1752038959253,1.39171066,108650.0,108640.0,0.02697253]
[1752038959952,1.39171066,108650.0,108640.0,0.02591647]
[1752038959953,1.39071066,108650.0,108640.0,0.02591647]
[1752038960163,1.39171066,108650.0,108640.0,0.02691647]
[1752038960460,1.39271066,108650.0,108640.0,0.02691647]
[1752038960884,1.38372521,108650.0,108640.0,0.02691647]
[1752038961572,1.38372521,108650.0,108640.0,0.00963851]
[1752038961869,1.38372152,108650.0,108640.0,0.00963425]
[1752038963449,1.38372152,108650.0,108640.0,0.00963362]
[1752038964849,1.37724791,108650.0,108640.0,0.00963362]
[1752038965950,1.37125745,108650.0,108640.0,0.00963362]
[1752038968208,1.37125745,108650.0,108640.0,0.00962884]
[1752038970404,1.37125745,108650.0,108640.0,0.001]
[1752038971102,0.57765592,108650.0,108640.0,0.016]
[1752038971325,0.57765592,108650.0,108640.0,0.37059129]
[1752038971326,0.68890992,108650.0,108640.0,0.37059129]
[1752038971534,0.68890992,108650.0,108640.0,0.06572095]
[1752038971743,0.99378026,108650.0,108640.0,0.06572095]
[1752038971962,1.00832111,108650.0,108640.0,0.06572095]
[1752038972314,0.70345077,108650.0,108640.0,0.06572095]
[1752038974451,0.56453077,108650.0,108640.0,0.06572095]
[1752038974600,0.70345077,108650.0,108640.0,0.06572095]
[1752038975831,0.31573541,108650.0,108640.0,0.08297617]
[1752038976036,0.40463843,108650.0,108640.0,0.08297617]
[1752038976175,0.43284137,108650.0,108640.0,0.08297617]
[1752038976588,0.43284137,108650.0,108640.0,0.08297646]
[1752038977621,0.73771171,108650.0,108640.0,0.08297646]
[1752038977823,0.59879171,108650.0,108640.0,0.08297646]
[1752038977995,0.73771171,108650.0,108640.0,0.08297646]
[1752038978690,0.59879171,108650.0,108640.0,0.08297646]
[1752038978911,0.73771171,108650.0,108640.0,0.08297646]
[1752038979654,0.6916372,108650.0,108640.0,0.08297608]
[1752038980320,0.6916372,108650.0,108640.0,0.08789983]
[1752038981936,0.65846356,108650.0,108640.0,0.08789983]
[1752038982570,0.51954356,108650.0,108640.0,0.08789983]
[1752038982783,0.65846356,108650.0,108640.0,0.08789983]
[1752038983847,0.6363478,108650.0,108640.0,0.08789983]
[1752038984057,0.64614005,108650.0,108640.0,0.08789983]
[1752038985807,0.63508217,108650.0,108640.0,0.08789983]
[1752038986035,0.62402429,108650.0,108640.0,0.08789983]
[1752038987975,0.59085065,108650.0,108640.0,0.08789983]
[1752038988216,0.28598031,108650.0,108640.0,0.08789983]
[1752038988402,0.59085065,108650.0,108640.0,0.08789983]
[1752038988558,0.45193065,108650.0,108640.0,0.08789983]
[1752038988733,0.59085065,108650.0,108640.0,0.08789983]
[1752038988961,0.45193065,108650.0,108640.0,0.08789983]
[1752038989176,0.59085065,108650.0,108640.0,0.08789983]
[1752038990030,0.59085065,108650.0,108640.0,0.07129983]
[1752038991947,0.56873492,108650.0,108640.0,0.07129983]
[1752038993859,0.53556133,108650.0,108640.0,0.07129983]
[1752038995387,0.53556133,108650.0,108640.0,0.0540447]
[1752038995610,0.53556133,108650.0,108640.0,0.04912095]
[1752038998262,0.53556133,108650.0,108640.0,0.09053503]
[1752039000781,0.53556133,108650.0,108640.0,0.09057918]
[1752039003520,0.53556133,108650.0,108640.0,0.07557918]
[1752039008929,0.53556133,108650.0,108640.0,0.07563062]
[1752039015090,0.52957166,108650.0,108640.0,0.0957847]
[1752039015233,0.54684904,108650.0,108640.0,0.07851027]
[1752039017050,0.52957166,108650.0,108640.0,0.07851027]
[1752039017265,0.53333166,108650.0,108640.0,0.07851027]
[1752039018273,0.53333166,108650.0,108640.0,0.07563062]
[1752039019850,0.53333166,108650.0,108640.0,0.09290555]
[1752039022630,0.53333166,108650.0,108640.0,0.07563062]
[1752039025446,0.52434715,108650.0,108640.0,0.09290517]
[1752039029965,0.51835748,108650.0,108640.0,0.09290517]
[1752039031219,0.21348714,108650.0,108640.0,0.09290517]
[1752039031447,0.51835748,108650.0,108640.0,0.09290517]
[1752039031669,0.51835748,108650.0,108640.0,0.07563062]
[1752039034855,0.53445748,108650.0,108640.0,0.07563062]
[1752039038540,0.39553748,108650.0,108640.0,0.07563062]
[1752039038748,0.51831748,108650.0,108640.0,0.07563062]
[1752039039823,0.53341748,108650.0,108640.0,0.07563062]
[1752039040762,0.22854714,108650.0,108640.0,0.07563062]
[1752039040970,0.53341748,108650.0,108640.0,0.07563062]
[1752039044918,0.49080972,108650.0,108640.0,0.07563062]
[1752039045539,0.67488703,108650.0,108640.0,0.0929008]
[1752039047390,0.65978703,108650.0,108640.0,0.0929008]
[1752039047594,0.67578703,108650.0,108640.0,0.0929008]
[1752039051368,0.65978703,108650.0,108640.0,0.0929008]
[1752039060065,0.65058334,108650.0,108640.0,0.0929008]
[1752039060667,0.65978703,108650.0,108640.0,0.0929008]
[1752039063282,0.35491669,108650.0,108640.0,0.0929008]
[1752039063519,0.65978703,108650.0,108640.0,0.0929008]
[1752039063823,0.67628703,108650.0,108640.0,0.0929008]
[1752039065311,0.66649478,108650.0,108640.0,0.0929008]
[1752039065550,0.68199478,108650.0,108640.0,0.0929008]
[1752039065979,0.78797256,108650.0,108640.0,0.0929008]
[1752039067444,1.0928429,108650.0,108640.0,0.0929008]
[1752039067647,0.78797256,108650.0,108640.0,0.0929008]
[1752039068848,0.78797256,108650.0,108640.0,0.05143934]
[1752039069826,1.0928429,108650.0,108640.0,0.05143934]
[1752039070235,0.79444965,108650.0,108640.0,0.05143934]
[1752039070641,0.79444978,108650.0,108640.0,0.03416916]
[1752039070859,0.79444978,108650.0,108640.0,0.0514349]
[1752039071222,0.79444993,108650.0,108640.0,0.0514349]
[1752039073443,0.78797256,108650.0,108640.0,0.0514349]
[1752039077421,0.78797256,108650.0,108640.0,0.03416916]
[1752039077881,0.79444684,108650.0,108640.0,0.05142762]
[1752039081679,0.79444684,108650.0,108640.0,0.03416916]
[1752039081881,0.79444684,108650.0,108640.0,0.05142652]
[1752039084740,0.79444653,108650.0,108640.0,0.05142677]
[1752039085130,0.48957619,108650.0,108640.0,0.05142677]
[1752039085343,0.4895763,108650.0,108640.0,0.05142677]
[1752039085569,0.79444664,108650.0,108640.0,0.05142677]
[1752039087762,0.79444664,108650.0,108640.0,0.05142782]
[1752039090485,0.48310222,108650.0,108640.0,0.05142782]
[1752039090689,0.79444743,108650.0,108640.0,0.05142782]
[1752039096077,0.77894743,108650.0,108640.0,0.05142782]
[1752039096281,0.77894743,108650.0,108640.0,0.05143571]
[1752039098746,0.77895073,108650.0,108640.0,0.05143571]
[1752039100303,0.47408039,108650.0,108640.0,0.05143571]
[1752039100506,0.77895073,108650.0,108640.0,0.05143571]
[1752039101396,0.77247256,108650.0,108640.0,0.05143571]
[1752039101820,0.77243256,108650.0,108640.0,0.05143571]
[1752039102034,0.75593256,108650.0,108640.0,0.05143571]
[1752039104204,0.78359756,108650.0,108640.0,0.05143571]
[1752039106978,0.32534637,108650.0,108640.0,0.37210605]
[1752039107199,0.20624444,108650.0,108640.0,0.93704109]
[1752039107423,0.34508444,108650.0,108640.0,0.63217083]
[1752039107636,0.17021031,108650.0,108640.0,0.65057931]
[1752039107859,0.18861795,108650.0,108640.0,0.70586909]
[1752039108311,0.17941477,108650.0,108640.0,0.70586909]
[1752039108525,0.36349208,108650.0,108640.0,0.70586909]
[1752039108773,0.36349208,108650.0,108640.0,0.66440763]
[1752039109193,0.36349208,108650.0,108640.0,0.70579608]
[1752039109811,0.36349208,108650.0,108640.0,0.6965918]
[1752039109812,0.35428864,108650.0,108640.0,0.6965918]
[1752039110234,0.21544864,108650.0,108640.0,0.6965918]
[1752039110452,0.35428864,108650.0,108640.0,0.6965918]
[1752039110870,0.35428864,108650.0,108640.0,0.67818298]
[1752039111021,0.34508495,108650.0,108640.0,0.67818298]
[1752039113106,0.19704117,108650.0,108640.0,0.67818298]
[1752039113308,0.33588117,108650.0,108640.0,0.67818298]
[1752039113693,0.19704117,108650.0,108640.0,0.67818298]
[1752039113894,0.33588117,108650.0,108640.0,0.67818298]
[1752039115342,0.33588117,108650.0,108640.0,0.37331264]
[1752039115776,0.33588117,108650.0,108640.0,0.67818298]
[1752039116348,0.33588117,108650.0,108640.0,0.67814539]
[1752039121252,0.33588117,108650.0,108640.0,0.68734993]
[1752039121689,0.33588117,108650.0,108640.0,0.69655438]
[1752039121922,0.33588117,108650.0,108640.0,0.68734993]
[1752039124155,0.33588117,108650.0,108640.0,0.69655438]
[1752039124581,0.33588117,108650.0,108640.0,0.70575875]
[1752039125621,0.18783731,108650.0,108640.0,0.69655438]
[1752039125796,0.32667731,108650.0,108640.0,0.70575875]
[1752039126027,0.335881,108650.0,108640.0,0.69655438]
[1752039127953,0.335881,108650.0,108640.0,0.68734993]
[1752039129037,0.335881,108650.0,108640.0,0.69655438]
[1752039129702,0.335881,108650.0,108640.0,0.70575875]
[1752039129916,0.335881,108650.0,108640.0,0.40088841]
[1752039130139,0.01296318,108650.0,108640.0,1.0198332]
[1752039130368,0.0069742,108650.0,108640.0,0.97844475]
[1752039130583,0.19525229,108670.0,108650.0,0.21838478]
[1752039130807,0.01840526,108660.0,108650.0,0.77224658]
[1752039131026,0.01840526,108660.0,108650.0,0.82753619]
[1752039131240,0.01840526,108660.0,108650.0,0.84343619]
[1752039131444,0.02760819,108660.0,108650.0,0.84343619]
[1752039131899,0.02760793,108660.0,108650.0,0.84343619]
[1752039132339,0.03681086,108660.0,108650.0,0.84343375]
[1752039132547,0.03781086,108660.0,108650.0,0.84643375]
[1752039132755,0.02860793,108660.0,108650.0,0.84643375]
[1752039132997,0.03781086,108660.0,108650.0,0.84643375]
[1752039133211,0.03781086,108660.0,108650.0,0.84743375]
[1752039133424,0.03781086,108660.0,108650.0,0.83823048]
[1752039133626,0.03781086,108660.0,108650.0,0.84743375]
[1752039134644,0.02860793,108660.0,108650.0,0.84743375]
[1752039135264,0.01940509,108660.0,108650.0,0.80608703]
[1752039135811,0.02860793,108660.0,108650.0,0.80608703]
[1752039137877,0.03781086,108660.0,108650.0,0.80608703]
[1752039138118,0.03781086,108660.0,108650.0,0.79688376]
[1752039139997,0.02860793,108660.0,108650.0,0.80608703]
[1752039141041,0.02860785,108660.0,108650.0,0.80609223]
[1752039141591,0.03781069,108660.0,108650.0,0.80609223]
[1752039141797,0.03781069,108660.0,108650.0,0.78768561]
[1752039142011,0.03781069,108660.0,108650.0,0.8060924]
[1752039142719,0.04701362,108660.0,108650.0,0.80609248]
[1752039143173,0.04701421,108660.0,108650.0,0.80609248]
[1752039143400,0.03781154,108660.0,108650.0,0.79688913]
[1752039143612,0.03781154,108660.0,108650.0,0.80609257]
[1752039144017,0.22187191,108660.0,108650.0,0.79688913]
[1752039144232,0.21266915,108660.0,108650.0,0.79688913]
[1752039144573,0.20346631,108660.0,108650.0,0.48281527]
[1752039144826,0.20346631,108660.0,108650.0,0.78760052]
[1752039146084,0.19426338,108660.0,108650.0,0.78760069]
[1752039146290,0.19426338,108660.0,108650.0,0.77170069]
[1752039146711,0.19426338,108660.0,108650.0,0.78090438]
[1752039149339,0.19426338,108660.0,108650.0,0.74782031]
[1752039149530,0.19426338,108660.0,108650.0,0.76367645]
[1752039149735,0.19426338,108660.0,108650.0,0.78090993]
[1752039150370,0.19426338,108660.0,108650.0,0.78091028]
[1752039151372,0.19426338,108660.0,108650.0,0.78091059]
[1752039152718,0.19426338,108660.0,108650.0,0.86384512]
[1752039153374,0.18827497,108660.0,108650.0,0.86384512]
[1752039155125,0.18827497,108660.0,108650.0,0.86385626]
[1752039157145,0.18827497,108660.0,108650.0,0.86386306]
[1752039157734,0.18827497,108660.0,108650.0,0.85465937]
[1752039157965,0.18406037,108660.0,108650.0,0.85465937]
[1752039158401,0.18406037,108660.0,108650.0,0.54979558]
[1752039158605,0.18406037,108660.0,108650.0,0.85466592]
[1752039159635,0.18406037,108660.0,108650.0,0.85469586]
[1752039160851,0.18406037,108660.0,108650.0,0.85469597]
[1752039161319,0.18406037,108660.0,108650.0,0.85470531]
[1752039161492,0.18406037,108660.0,108650.0,0.7835157]
[1752039164274,0.18406037,108660.0,108650.0,0.82953689]
[1752039165318,0.18406037,108660.0,108650.0,0.19254538]
[1752039165442,0.18406037,108660.0,108650.0,0.33146538]
[1752039165643,0.18406037,108660.0,108650.0,0.63633572]
[1752039167154,0.18406037,108660.0,108650.0,0.64553958]
[1752039168412,0.18406037,108660.0,108650.0,0.82961689]
[1752039169707,0.18406037,108660.0,108650.0,0.83882067]
[1752039169935,0.18406037,108660.0,108650.0,0.85452067]
[1752039170886,0.18406037,108660.0,108650.0,0.82961689]
[1752039176237,0.18406037,108660.0,108650.0,0.83882067]
[1752039177664,0.18406037,108660.0,108650.0,0.84802436]
[1752039178199,0.19326338,108660.0,108650.0,0.85722797]
[1752039178616,0.20246614,108660.0,108650.0,0.81120652]
[1752039179025,0.20246614,108660.0,108650.0,0.82620652]
[1752039180057,0.20246614,108660.0,108650.0,0.817003]
[1752039181104,0.01840527,108660.0,108650.0,0.82620593]
[1752039181308,0.0276082,108660.0,108650.0,0.82620593]
[1752039181919,0.0276082,108660.0,108650.0,0.82621284]
[1752039182126,0.23007442,108660.0,108650.0,0.81700957]
[1752039182331,0.22087191,108660.0,108650.0,0.81700957]
[1752039182948,0.21166915,108660.0,108650.0,0.81700957]
[1752039183369,0.20246622,108660.0,108650.0,0.81700957]
[1752039183778,0.20246622,108660.0,108650.0,0.82621301]
[1752039183991,0.20246622,108660.0,108650.0,0.81700957]
[1752039184397,0.20246622,108660.0,108650.0,0.82621301]
[1752039184520,0.20246622,108660.0,108650.0,0.81700957]
[1752039186047,0.20246622,108660.0,108650.0,0.82621301]
[1752039188478,0.32496343,108670.0,108660.0,0.19326338]
[1752039188683,0.32496343,108670.0,108660.0,0.43780515]
[1752039188904,0.62983377,108670.0,108660.0,0.4378017]
[1752039189323,0.64563377,108670.0,108660.0,0.42859869]
[1752039189532,0.66163377,108670.0,108660.0,0.42859869]
[1752039189748,0.66263377,108670.0,108660.0,0.42859869]
[1752039189943,0.67192823,108670.0,108660.0,0.42859869]
[1752039190383,0.67192823,108670.0,108660.0,0.47001208]
[1752039190593,0.67292823,108670.0,108660.0,0.47201208]
[1752039192405,0.67292823,108670.0,108660.0,0.28795171]
[1752039192733,0.67292823,108670.0,108660.0,0.14903171]
[1752039193136,0.67292823,108670.0,108660.0,0.33309208]
[1752039193583,0.66363377,108670.0,108660.0,0.33309208]
[1752039194221,0.35876343,108670.0,108660.0,0.33309208]
[1752039194628,0.35876343,108670.0,108660.0,0.33308461]
[1752039195299,0.35876343,108670.0,108660.0,0.34228762]
[1752039195699,0.32692343,108670.0,108660.0,0.65636089]
[1752039195918,0.32692343,108670.0,108660.0,0.68196373]
[1752039196106,0.32692343,108670.0,108660.0,0.69116649]
[1752039196308,0.32692343,108670.0,108660.0,0.37709339]
[1752039196522,0.32692343,108670.0,108660.0,0.65636089]
[1752039197235,0.32692343,108670.0,108660.0,0.35149055]
[1752039198007,0.32692343,108670.0,108660.0,0.31007716]
[1752039198220,0.32692343,108670.0,108660.0,0.30087423]
[1752039199887,0.32692343,108670.0,108660.0,0.31007716]
[1752039200292,0.32692343,108670.0,108660.0,0.31007355]
[1752039200493,0.32692343,108670.0,108660.0,0.31927639]
[1752039200844,0.32692343,108670.0,108660.0,0.32847915]
[1752039201049,0.32692343,108670.0,108660.0,0.31927639]
[1752039201257,0.32692343,108670.0,108660.0,0.32847915]
[1752039201889,0.16128374,108670.0,108660.0,0.64255157]
[1752039202094,0.18888896,108670.0,108660.0,0.67505174]
[1752039202516,0.17968688,108670.0,108660.0,0.73278334]
[1752039202727,0.05000896,108670.0,108660.0,0.74198585]
[1752039202929,0.04900896,108670.0,108660.0,0.74198585]
[1752039203142,0.04900896,108670.0,108660.0,0.74298585]
[1752039203465,0.04800896,108670.0,108660.0,0.65805132]
[1752039203701,0.03980688,108670.0,108660.0,0.66105132]
[1752039203907,0.03980688,108670.0,108660.0,0.76048543]
[1752039203908,0.02140323,108670.0,108660.0,0.76048543]
[1752039204041,0.03060506,108670.0,108660.0,0.76048543]
[1752039204249,0.03980706,108670.0,108660.0,0.76048543]
[1752039204444,0.03060506,108670.0,108660.0,0.76048543]
[1752039205551,0.03060497,108670.0,108660.0,0.76048543]
[1752039205761,0.0398068,108670.0,108660.0,0.76048543]
[1752039206172,0.0398068,108670.0,108660.0,0.76048184]
[1752039207692,0.03060497,108670.0,108660.0,0.76048184]
[1752039208104,0.0398068,108670.0,108660.0,0.76048184]
[1752039208952,0.04900871,108670.0,108660.0,0.76048184]
[1752039209374,0.04900871,108670.0,108660.0,0.89936184]
[1752039211515,0.04900922,108670.0,108660.0,0.89015942]
[1752039211729,0.04900922,108670.0,108660.0,0.89011094]
[1752039211944,0.04900922,108670.0,108660.0,0.87361094]
[1752039212380,0.04900922,108670.0,108660.0,0.81843044]
[1752039212587,0.04900922,108670.0,108660.0,0.87361087]
[1752039213009,0.04900922,108670.0,108660.0,0.81843044]
[1752039213209,0.03980714,108670.0,108660.0,0.81113286]
[1752039213848,0.04900914,108670.0,108660.0,0.80193044]
[1752039214072,0.04900914,108670.0,108660.0,0.81813044]
[1752039214417,0.04900914,108670.0,108660.0,0.82733286]
[1752039215261,0.04900914,108670.0,108660.0,0.81813044]
[1752039216118,0.03980714,108670.0,108660.0,0.82733286]
[1752039216413,0.03060523,108670.0,108660.0,0.82733286]
[1752039217084,0.0214034,108670.0,108660.0,0.82733286]
[1752039217300,0.003,108670.0,108660.0,1.23864013]
[1752039217751,0.003,108670.0,108660.0,1.1557056]
[1752039219288,0.03680376,108680.0,108670.0,0.21164917]
[1752039219495,0.02760261,108680.0,108670.0,0.8528302]
[1752039219713,0.03680393,108680.0,108670.0,0.8436288]
[1752039220128,0.03680385,108680.0,108670.0,0.85283054]
[1752039220341,0.03680385,108680.0,108670.0,0.82638353]
[1752039220558,0.03680385,108680.0,108670.0,0.53875054]
[1752039220769,0.03780385,108680.0,108670.0,0.53975054]
[1752039221592,0.03780385,108680.0,108670.0,0.84462088]
[1752039221994,0.03680385,108680.0,108670.0,0.53975054]
[1752039222410,0.03680385,108680.0,108670.0,0.45701387]
[1752039222863,0.03680385,108680.0,108670.0,0.46621561]
[1752039223074,0.03780385,108680.0,108670.0,0.46101387]
[1752039223711,0.02860261,108680.0,108670.0,0.47021553]
[1752039223915,0.02860261,108680.0,108670.0,0.46101387]
[1752039224122,0.02860261,108680.0,108670.0,0.47021553]
[1752039224561,0.02860261,108680.0,108670.0,0.78428744]
[1752039224778,0.02860261,108680.0,108670.0,0.77508587]
[1752039225011,0.02860261,108680.0,108670.0,0.86702411]
[1752039225432,0.02860261,108680.0,108670.0,0.85782254]
[1752039225664,0.02860261,108680.0,108670.0,0.86702411]
[1752039225881,0.02860252,108680.0,108670.0,0.86702411]
[1752039226537,0.01940154,108680.0,108670.0,0.86702411]
[1752039226753,0.01940154,108680.0,108670.0,0.88292411]
[1752039227191,0.01020064,108680.0,108670.0,0.88292411]
[1752039227402,0.01940137,108680.0,108670.0,0.88292411]
[1752039227611,0.02860227,108680.0,108670.0,0.88292411]
[1752039228194,0.001,108680.0,108670.0,0.88292411]
[1752039228401,0.01020064,108680.0,108670.0,0.88292411]
[1752039229106,0.01020064,108680.0,108670.0,0.98996104]
[1752039229107,0.001,108680.0,108670.0,0.98996104]
[1752039229303,0.001,108680.0,108670.0,0.93480326]
[1752039230321,0.02960031,108690.0,108680.0,0.21162969]
[1752039230522,0.02039968,108690.0,108680.0,0.81137564]
[1752039230768,0.02959973,108690.0,108680.0,0.80217491]
[1752039231085,0.03879995,108690.0,108680.0,0.81137564]
[1752039231450,0.03888595,108690.0,108680.0,0.5065053]
[1752039231860,0.02968573,108690.0,108680.0,0.5065053]
[1752039232380,0.03888595,108690.0,108680.0,0.49930457]
[1752039233029,0.04808642,108690.0,108680.0,0.49010376]
[1752039233240,0.04808642,108690.0,108680.0,0.49930474]
[1752039234715,0.04808642,108690.0,108680.0,0.49010376]
[1752039235155,0.04808642,108690.0,108680.0,0.49930474]
[1752039235750,0.04808642,108690.0,108680.0,0.49010376]
[1752039235955,0.04808642,108690.0,108680.0,0.49930474]
[1752039237570,0.04808642,108690.0,108680.0,0.4992908]
[1752039238173,0.04808642,108690.0,108680.0,0.49008982]
[1752039238596,0.04808642,108690.0,108680.0,0.4992908]
[1752039238972,0.04808642,108690.0,108680.0,0.49008982]
[1752039239795,0.35295676,108690.0,108680.0,0.49008982]
[1752039240755,0.04808634,108690.0,108680.0,0.49929072]
[1752039241105,0.35295659,108690.0,108680.0,0.52419153]
[1752039241313,0.35295659,108690.0,108680.0,0.51499072]
[1752039241741,0.04808701,108690.0,108680.0,0.5149908]
[1752039241958,0.03888654,108690.0,108680.0,0.82906204]
[1752039242118,0.03888654,108690.0,108680.0,0.5241917]
[1752039242327,0.03888654,108690.0,108680.0,0.53339504]
[1752039242550,0.02048559,108690.0,108680.0,0.49265097]
[1752039242752,0.02968564,108690.0,108680.0,0.81362131]
[1752039243079,0.02968564,108690.0,108680.0,0.89635798]
[1752039243901,0.03888594,108690.0,108680.0,0.87105725]
[1752039244150,0.03888594,108690.0,108680.0,0.56618691]
[1752039244772,0.02048559,108690.0,108680.0,0.88025798]
[1752039245434,0.02048568,108690.0,108680.0,0.82513333]
[1752039245641,0.01128571,108690.0,108680.0,0.84093333]
[1752039245865,0.002086,108690.0,108680.0,0.93237026]
[1752039250499,0.0112858,108690.0,108680.0,0.93237026]
[1752039250712,0.0112858,108690.0,108680.0,0.59539992]
[1752039250934,0.02048585,108690.0,108680.0,0.59539992]
[1752039251135,0.02048577,108690.0,108680.0,0.59539992]
[1752039252594,0.0112858,108690.0,108680.0,0.59539992]
[1752039254078,0.02048577,108690.0,108680.0,0.59539992]
[1752039254301,0.0112858,108690.0,108680.0,0.59539992]
[1752039254908,0.01128571,108690.0,108680.0,0.59539992]
[1752039255356,0.02048559,108690.0,108680.0,0.59539992]
[1752039255736,0.01128571,108690.0,108680.0,0.90027026]
[1752039255946,0.02048559,108690.0,108680.0,0.90027026]
[1752039256535,0.01128571,108690.0,108680.0,0.90027026]
[1752039256741,0.02048559,108690.0,108680.0,0.90027026]
[1752039257998,0.02048551,108690.0,108680.0,0.90027026]
[1752039258363,0.02048551,108690.0,108680.0,0.90022897]
[1752039259198,0.02048551,108690.0,108680.0,0.77768897]
[1752039259373,0.02048551,108690.0,108680.0,0.59532739]
[1752039259556,0.02048551,108690.0,108680.0,0.90019773]
[1752039259961,0.02968548,108690.0,108680.0,0.90019773]
[1752039260182,0.02048551,108690.0,108680.0,0.90019773]
[1752039260486,0.02968556,108690.0,108680.0,0.90019773]
[1752039263332,0.03888578,108690.0,108680.0,0.90019773]
[1752039264536,0.02968556,108690.0,108680.0,0.90019773]
[1752039265320,0.02968539,108690.0,108680.0,0.90019773]
[1752039265841,0.03888544,108690.0,108680.0,0.90019773]
[1752039266057,0.03888544,108690.0,108680.0,0.90020036]
[1752039267049,0.03888544,108690.0,108680.0,0.59533002]
[1752039267251,0.03888544,108690.0,108680.0,0.90020036]
[1752039268035,0.02968539,108690.0,108680.0,0.90020036]
[1752039268816,0.03888544,108690.0,108680.0,0.90020036]
[1752039269251,0.03888544,108690.0,108680.0,0.81746369]
[1752039269926,0.02968539,108690.0,108680.0,0.81746369]
[1752039270135,0.03888536,108690.0,108680.0,0.81746369]
[1752039271489,0.04808549,108690.0,108680.0,0.81746369]
[1752039271693,0.04808617,108690.0,108680.0,0.56777017]
[1752039271913,0.04808608,108690.0,108680.0,0.5769709]
[1752039272114,0.03888578,108690.0,108680.0,0.57697098]
[1752039272377,0.03888578,108690.0,108680.0,0.58617171]
[1752039273326,0.04808617,108690.0,108680.0,0.50339245]
[1752039273451,0.04808608,108690.0,108680.0,0.50339245]
[1752039276419,0.04808608,108690.0,108680.0,0.80726279]
[1752039276727,0.04808608,108690.0,108680.0,0.80626279]
[1752039277027,0.04808608,108690.0,108680.0,0.81126279]
[1752039277977,0.04808608,108690.0,108680.0,0.80206206]
[1752039278296,0.04808667,108690.0,108680.0,0.80206206]
[1752039278929,0.03888679,108690.0,108680.0,0.79286125]
[1752039279122,0.03888679,108690.0,108680.0,0.49719181]
[1752039279331,0.22289635,108690.0,108680.0,0.48799091]
[1752039279543,0.52776669,108690.0,108680.0,0.48799091]
[1752039279753,0.34375713,108690.0,108680.0,0.49719172]